fUSD/lending_fUSD_20240718
["ID","MTS","AMOUNT","RATE_DAILY","PERIOD"]
[332521478,1721287987189,-480.01144951,0.00023287,2]
[332521479,1721287987199,-500.0,0.00023287,2]
[332521480,1721287987209,-500.0,0.00023287,2]
[332521481,1721287987220,-832.49,0.00023287,2]
[332521482,1721287987230,-500.0,0.00023287,2]
[332521483,1721287987240,-500.0,0.00023287,2]
[332521484,1721287987251,-500.0,0.00023287,2]
[332521485,1721287987261,-500.0,0.00023287,2]
[332521486,1721287987272,-500.0,0.00023287,2]
[332521487,1721287987283,-500.0,0.00023287,2]
[332521488,1721287987293,-635.85,0.00023287,2]
[332521489,1721287987303,-500.0,0.00023287,2]
[332521490,1721287987314,-500.0,0.00023287,2]
[332521491,1721287987324,-500.0,0.00023287,2]
[332521492,1721287987334,-1002.59,0.00023287,2]
[332521493,1721287987344,-667.65,0.00023287,2]
[332521494,1721287987355,-500.0,0.00023287,2]
[332521495,1721287987365,-500.0,0.00023287,2]
[332521496,1721287987375,-500.0,0.00023287,2]
[332521497,1721287987386,-500.0,0.00023287,2]
[332521498,1721287987396,-508.22747935,0.00023287,2]
[332521499,1721287987407,-500.0,0.00023287,2]
[332521500,1721287987418,-500.0,0.00023287,2]
[332521501,1721287987429,-1264.99,0.00023287,2]
[332521502,1721287987439,-500.0,0.00023287,2]
[332521503,1721287987449,-558.12,0.00023287,2]
[332521504,1721287987459,-500.0,0.00023287,2]
[332521505,1721287987470,-828.72,0.00023287,2]
[332521506,1721287987481,-500.0,0.00023287,2]
[332521507,1721287987492,-500.0,0.00023287,2]
[332521508,1721287987503,-935.3,0.00023287,2]
[332521509,1721287987513,-825.13,0.00023287,2]
[332521510,1721287987523,-500.0,0.00023287,2]
[332521511,1721287987533,-500.0,0.00023287,2]
[332521512,1721287987543,-500.0,0.00023287,2]
[332521513,1721287987554,-500.0,0.00023287,2]
[332521514,1721287987564,-500.0,0.00023287,2]
[332521515,1721287987574,-500.0,0.00023287,2]
[332521516,1721287987584,-500.0,0.00023287,2]
[332521517,1721287987594,-572.09,0.00023287,2]
[332521518,1721287987605,-500.0,0.00023287,2]
[332521519,1721287987614,-801.73,0.00023287,2]
[332521520,1721287987625,-500.0,0.00023287,2]
[332521521,1721287987639,-829.06,0.00023287,2]
[332521522,1721287987649,-238.82575277,0.00023287,2]
[332521523,1721287987659,-500.0,0.00023287,2]
[332521524,1721287987670,-500.0,0.00023287,2]
[332521525,1721287987681,-301.202017,0.00023287,2]
[332521526,1721287987692,-500.0,0.00023287,2]
[332521527,1721287987702,-500.0,0.00023287,2]
[332521528,1721287987713,-500.0,0.00023287,2]
[332521529,1721287987723,-500.0,0.00023287,2]
[332521530,1721287987734,-500.0,0.00023287,2]
[332521531,1721287987744,-500.0,0.00023287,2]
[332521532,1721287987755,-1500.37,0.00023287,2]
[332521533,1721287987766,-533.21,0.00023287,2]
[332521534,1721287987776,-493.22409317,0.00023287,2]
[332521535,1721287987787,-993.33,0.00023287,2]
[332521536,1721287987796,-500.0,0.00023287,2]
[332521537,1721287987806,-500.0,0.00023287,2]
[332521538,1721287987816,-500.0,0.00023287,2]
[332521539,1721287987827,-500.0,0.00023287,2]
[332521540,1721287987837,-500.0,0.00023287,2]
[332521541,1721287987847,-500.0,0.00023287,2]
[332521542,1721287987858,-916.75,0.00023287,2]
[332521543,1721287987868,-500.0,0.00023287,2]
[332521544,1721287987878,-500.0,0.00023287,2]
[332521545,1721287987889,-614.68,0.00023287,2]
[332521546,1721287987899,-839.63,0.00023287,2]
[332521547,1721287987910,-1099.16,0.00023287,2]
[332521548,1721287987922,-2190.92,0.00023287,2]
[332521549,1721287987932,-500.0,0.00023287,2]
[332521550,1721287987943,-500.0,0.00023287,2]
[332521551,1721287987953,-769.89,0.00023287,2]
[332521552,1721287987964,-500.0,0.00023287,2]
[332521553,1721287987974,-860.39,0.00023287,2]
[332521554,1721287987984,-500.0,0.00023287,2]
[332521555,1721287987994,-1387.79,0.00023287,2]
[332521556,1721287988004,-500.0,0.00023287,2]
[332521557,1721287988014,-500.0,0.00023287,2]
[332521558,1721287988026,-214.88382785,0.00023287,2]
[332521559,1721287988036,-500.0,0.00023287,2]
[332521560,1721287988046,-500.0,0.00023287,2]
[332521561,1721287988056,-621.09,0.00023287,2]
[332521562,1721287988066,-500.0,0.00023287,2]
[332521563,1721287988076,-500.0,0.00023287,2]
[332521564,1721287988086,-2607.0,0.00023287,2]
[332521565,1721287988096,-500.0,0.00023287,2]
[332521566,1721287988106,-500.0,0.00023287,2]
[332521567,1721287988117,-934.95,0.00023287,2]
[332521568,1721287988126,-634.32,0.00023287,2]
[332521569,1721287988136,-1185.83,0.00023287,2]
[332521570,1721287988146,-714.68,0.00023287,2]
[332521571,1721287988156,-500.0,0.00023287,2]
[332521572,1721287988168,-500.0,0.00023287,2]
[332521573,1721287988178,-500.0,0.00023287,2]
[332521574,1721287988189,-706.1,0.00023287,2]
[332521575,1721287988202,-992.23,0.00023287,2]
[332521576,1721287988212,-500.0,0.00023287,2]
[332521577,1721287988481,-719.06,0.00023287,2]
[332521578,1721287988503,-500.0,0.00023287,2]
[332521579,1721287988512,-500.0,0.00023287,2]
[332521580,1721287988521,-500.0,0.00023287,2]
[332521581,1721287988531,-962.74,0.00023287,2]
[332521582,1721287988540,-879.71,0.00023287,2]
[332521583,1721287988550,-500.0,0.00023287,2]
[332521584,1721287988559,-500.0,0.00023287,2]
[332521585,1721287988569,-4194.17,0.00023287,2]
[332521586,1721287988578,-500.0,0.00023287,2]
[332521587,1721287988588,-500.0,0.00023287,2]
[332521588,1721287988598,-500.0,0.00023287,2]
[332521589,1721287988607,-500.0,0.00023287,2]
[332521590,1721287988616,-500.0,0.00023287,2]
[332521591,1721287988627,-500.0,0.00023287,2]
[332521592,1721287988642,-796.16,0.00023287,2]
[332521593,1721287988651,-1343.67,0.00023287,2]
[332521594,1721287988661,-500.0,0.00023287,2]
[332521595,1721287988671,-500.0,0.00023287,2]
[332521596,1721287988682,-845.59,0.00023287,2]
[332521597,1721287988692,-500.0,0.00023287,2]
[332521598,1721287988702,-607.98,0.00023287,2]
[332521599,1721287988714,-500.0,0.00023287,2]
[332521600,1721287988725,-884.87,0.00023287,2]
[332521601,1721287988735,-500.0,0.00023287,2]
[332521602,1721287988746,-500.0,0.00023287,2]
[332521603,1721287988756,-500.0,0.00023287,2]
[332521604,1721287988767,-500.0,0.00023287,2]
[332521605,1721287988777,-500.0,0.00023287,2]
[332521606,1721287988787,-563.78,0.00023287,2]
[332521607,1721287988797,-500.0,0.00023287,2]
[332521608,1721287988806,-664.21,0.00023287,2]
[332521609,1721287988816,-500.0,0.00023287,2]
[332521610,1721287988826,-500.0,0.00023287,2]
[332521611,1721287988836,-275.05371904,0.00023287,2]
[332521612,1721287988845,-619.48,0.00023287,2]
[332521613,1721287988855,-1023.41,0.00023287,2]
[332521614,1721287988865,-500.0,0.00023287,2]
[332521615,1721287988875,-4286.57,0.00023287,2]
[332521616,1721287988884,-500.0,0.00023287,2]
[332521617,1721287988895,-759.2,0.00023287,2]
[332521618,1721287988905,-699.13,0.00023287,2]
[332521619,1721287988915,-500.0,0.00023287,2]
[332521620,1721287988925,-500.0,0.00023287,2]
[332521621,1721287988935,-500.0,0.00023287,2]
[332521622,1721287988946,-1303.0,0.00023287,2]
[332521623,1721287988955,-664.93,0.00023287,2]
[332521624,1721287988964,-500.0,0.00023287,2]
[332521625,1721287988975,-500.0,0.00023287,2]
[332521626,1721287988985,-779.15,0.00023287,2]
[332521627,1721287988994,-799.99,0.00023287,2]
[332521628,1721287989004,-500.0,0.00023287,2]
[332521629,1721287989014,-840.9,0.00023287,2]
[332521630,1721287989024,-705.02,0.00023287,2]
[332521631,1721287989034,-500.0,0.00023287,2]
[332521632,1721287989044,-500.0,0.00023287,2]
[332521633,1721287989054,-1213.95,0.00023287,2]
[332521634,1721287989064,-500.0,0.00023287,2]
[332521635,1721287989075,-500.0,0.00023287,2]
[332521636,1721287989085,-500.0,0.00023287,2]
[332521637,1721287989095,-500.0,0.00023287,2]
[332521638,1721287989105,-712.43,0.00023287,2]
[332521639,1721287989115,-500.0,0.00023287,2]
[332521640,1721287989125,-615.07,0.00023287,2]
[332521641,1721287989135,-500.0,0.00023287,2]
[332521642,1721287989145,-640.55,0.00023287,2]
[332521643,1721287989155,-500.0,0.00023287,2]
[332521644,1721287989165,-842.93,0.00023287,2]
[332521645,1721287989175,-500.0,0.00023287,2]
[332521646,1721287989185,-500.0,0.00023287,2]
[332521647,1721287989195,-500.0,0.00023287,2]
[332521648,1721287989204,-500.0,0.00023287,2]
[332521649,1721287989214,-515.65,0.00023287,2]
[332521650,1721287989223,-500.0,0.00023287,2]
[332521651,1721287989233,-500.0,0.00023287,2]
[332521652,1721287989242,-500.0,0.00023287,2]
[332521653,1721287989251,-500.0,0.00023287,2]
[332521654,1721287989261,-964.94,0.00023287,2]
[332521655,1721287989270,-503.14498341,0.00023287,2]
[332521656,1721287989279,-592.68,0.00023287,2]
[332521657,1721287989289,-6375.98,0.00023287,2]
[332521658,1721287989298,-1083.93,0.00023287,2]
[332521659,1721287989308,-500.0,0.00023287,2]
[332521660,1721287989318,-1037.41,0.00023287,2]
[332521661,1721287989327,-1379.21,0.00023287,2]
[332521662,1721287989337,-500.0,0.00023287,2]
[332521663,1721287989349,-500.0,0.00023287,2]
[332521664,1721287989358,-500.0,0.00023287,2]
[332521665,1721287989368,-500.0,0.00023287,2]
[332521666,1721287989378,-500.0,0.00023287,2]
[332521667,1721287989387,-1777.51,0.00023287,2]
[332521668,1721287989397,-559.08,0.00023287,2]
[332521669,1721287989407,-500.0,0.00023287,2]
[332521670,1721287989416,-500.0,0.00023287,2]
[332521671,1721287989426,-1444.47,0.00023287,2]
[332521672,1721287989436,-500.0,0.00023287,2]
[332521673,1721287989446,-1147.47,0.00023287,2]
[332521674,1721287989457,-500.0,0.00023287,2]
[332521675,1721287989466,-500.0,0.00023287,2]
[332521676,1721287989476,-815.97,0.00023287,2]
[332521677,1721287989485,-500.0,0.00023287,2]
[332521678,1721287989496,-500.0,0.00023287,2]
[332521679,1721287989506,-1394.22,0.00023287,2]
[332521680,1721287989517,-500.0,0.00023287,2]
[332521681,1721287989527,-500.0,0.00023287,2]
[332521682,1721287989536,-1149.47,0.00023287,2]
[332521683,1721287989546,-500.0,0.00023287,2]
[332521684,1721287989556,-500.0,0.00023287,2]
[332521685,1721287989566,-500.0,0.00023287,2]
[332521686,1721287989576,-588.95,0.00023287,2]
[332521687,1721287989587,-500.0,0.00023287,2]
[332521688,1721287989598,-1142.52,0.00023287,2]
[332521689,1721287989608,-7884.99,0.00023287,2]
[332521690,1721287989620,-500.0,0.00023287,2]
[332521691,1721287989632,-2350.96,0.00023287,2]
[332521692,1721287989644,-500.0,0.00023287,2]
[332521693,1721287989655,-500.0,0.00023287,2]
[332521694,1721287989664,-817.71,0.00023287,2]
[332521695,1721287989674,-751.24,0.00023287,2]
[332521696,1721287989684,-567.84,0.00023287,2]
[332521697,1721287989695,-500.0,0.00023287,2]
[332521698,1721287989705,-518.01,0.00023287,2]
[332521699,1721287989718,-9262.82,0.00023287,2]
[332521700,1721287989730,-1047.43,0.00023287,2]
[332521701,1721287989744,-576.17,0.00023287,2]
[332521702,1721287989753,-500.0,0.00023287,2]
[332521703,1721287989763,-500.0,0.00023287,2]
[332521704,1721287989772,-500.0,0.00023287,2]
[332521705,1721287989783,-500.0,0.00023287,2]
[332521706,1721287989794,-500.0,0.00023287,2]
[332521707,1721287989806,-943.1,0.00023287,2]
[332521708,1721287989816,-714.81,0.00023287,2]
[332521709,1721287989827,-500.0,0.00023287,2]
[332521710,1721287989839,-500.0,0.00023287,2]
[332521711,1721287989850,-502.05575103,0.00023287,2]
[332521712,1721287989859,-500.0,0.00023287,2]
[332521713,1721287989869,-559.22,0.00023287,2]
[332521714,1721287989879,-1700.34,0.00023287,2]
[332521715,1721287989888,-500.0,0.00023287,2]
[332521716,1721287989898,-671.4,0.00023287,2]
[332521717,1721287989908,-595.86,0.00023287,2]
[332521718,1721287989917,-505.03318868,0.00023287,2]
[332521719,1721287989927,-500.0,0.00023287,2]
[332521720,1721287989937,-500.0,0.00023287,2]
[332521721,1721287989947,-500.0,0.00023287,2]
[332521722,1721287989956,-500.0,0.00023287,2]
[332521723,1721287989966,-500.0,0.00023287,2]
[332521724,1721287989975,-500.0,0.00023287,2]
[332521725,1721287989985,-500.0,0.00023287,2]
[332521726,1721287989995,-500.0,0.00023287,2]
[332521727,1721287990004,-897.02,0.00023287,2]
[332521728,1721287990014,-500.0,0.00023287,2]
[332521729,1721287990024,-919.85,0.00023287,2]
[332521730,1721287990033,-763.5,0.00023287,2]
[332521731,1721287990043,-915.85,0.00023287,2]
[332521732,1721287990053,-812.96,0.00023287,2]
[332521733,1721287990063,-709.03,0.00023287,2]
[332521734,1721287990073,-500.0,0.00023287,2]
[332521735,1721287990082,-500.0,0.00023287,2]
[332521736,1721287990092,-1583.56,0.00023287,2]
[332521737,1721287990102,-500.0,0.00023287,2]
[332521738,1721287990112,-634.02,0.00023287,2]
[332521739,1721287990121,-1299.19,0.00023287,2]
[332521740,1721287990131,-1450.66,0.00023287,2]
[332521741,1721287990140,-500.0,0.00023287,2]
[332521742,1721287990150,-500.0,0.00023287,2]
[332521743,1721287990160,-500.0,0.00023287,2]
[332521744,1721287990171,-708.78,0.00023287,2]
[332521745,1721287990181,-378.57218707,0.00023287,2]
[332521746,1721287990191,-500.0,0.00023287,2]
[332521747,1721287990201,-948.76,0.00023287,2]
[332521748,1721287990211,-500.0,0.00023287,2]
[332521749,1721287990221,-2003.88,0.00023287,2]
[332521750,1721287990230,-1051.57,0.00023287,2]
[332521751,1721287990239,-796.81,0.00023287,2]
[332521752,1721287990249,-601.06,0.00023287,2]
[332521753,1721287990259,-515.65,0.00023287,2]
[332521754,1721287990268,-1013.83,0.00023287,2]
[332521755,1721287990278,-500.0,0.00023287,2]
[332521756,1721287990287,-500.0,0.00023287,2]
[332521757,1721287990297,-544.27,0.00023287,2]
[332521758,1721287990307,-503.35,0.00023287,2]
[332521759,1721287990316,-500.0,0.00023287,2]
[332521760,1721287990325,-1547.31,0.00023287,2]
[332521761,1721287990335,-500.0,0.00023287,2]
[332521762,1721287990344,-500.0,0.00023287,2]
[332521763,1721287990353,-500.0,0.00023287,2]
[332521764,1721287990363,-500.0,0.00023287,2]
[332521765,1721287990373,-500.0,0.00023287,2]
[332521766,1721287990382,-612.66,0.00023287,2]
[332521767,1721287990391,-957.7,0.00023287,2]
[332521768,1721287990401,-999.04,0.00023287,2]
[332521769,1721287990411,-677.55,0.00023287,2]
[332521770,1721287990421,-500.0,0.00023287,2]
[332521771,1721287990431,-549.83,0.00023287,2]
[332521772,1721287990441,-500.0,0.00023287,2]
[332521773,1721287990451,-798.47,0.00023287,2]
[332521774,1721287990462,-500.0,0.00023287,2]
[332521775,1721287990471,-695.01,0.00023287,2]
[332521776,1721287990482,-500.0,0.00023287,2]
[332521777,1721287990492,-500.0,0.00023287,2]
[332521778,1721287990502,-500.0,0.00023287,2]
[332521779,1721287990513,-502.15943909,0.00023287,2]
[332521780,1721287990524,-518.09,0.00023287,2]
[332521781,1721287990534,-500.0,0.00023287,2]
[332521782,1721287990544,-500.0,0.00023287,2]
[332521783,1721287990553,-813.28,0.00023287,2]
[332521784,1721287990563,-1656.81,0.00023287,2]
[332521785,1721287990573,-500.0,0.00023287,2]
[332521786,1721287990582,-500.0,0.00023287,2]
[332521787,1721287990592,-945.22,0.00023287,2]
[332521788,1721287990601,-500.0,0.00023287,2]
[332521789,1721287990611,-500.0,0.00023287,2]
[332521790,1721287990620,-947.17,0.00023287,2]
[332521791,1721287990634,-539.79,0.00023287,2]
[332521792,1721287990644,-500.0,0.00023287,2]
[332521793,1721287990654,-706.37,0.00023287,2]
[332521794,1721287990665,-500.0,0.00023287,2]
[332521795,1721287990676,-580.24467904,0.00023287,2]
[332521796,1721287990686,-500.0,0.00023287,2]
[332521797,1721287990695,-500.0,0.00023287,2]
[332521798,1721287990706,-500.0,0.00023287,2]
[332521799,1721287990716,-1135.75,0.00023287,2]
[332521800,1721287990726,-500.0,0.00023287,2]
[332521801,1721287990736,-503.09444806,0.00023287,2]
[332521802,1721287990746,-500.0,0.00023287,2]
[332521803,1721287990755,-673.53,0.00023287,2]
[332521804,1721287990764,-836.84,0.00023287,2]
[332521805,1721287990774,-3128.96,0.00023287,2]
[332521806,1721287990783,-500.0,0.00023287,2]
[332521807,1721287990793,-500.0,0.00023287,2]
[332521808,1721287990803,-500.0,0.00023287,2]
[332521809,1721287990812,-500.0,0.00023287,2]
[332521810,1721287990822,-500.0,0.00023287,2]
[332521811,1721287990831,-842.49,0.00023287,2]
[332521812,1721287990841,-500.0,0.00023287,2]
[332521813,1721287990852,-557.31,0.00023287,2]
[332521814,1721287990862,-669.1,0.00023287,2]
[332521815,1721287990871,-3223.32,0.00023287,2]
[332521816,1721287990994,-500.0,0.00023287,2]
[332521817,1721287991003,-542.57,0.00023287,2]
[332521818,1721287991012,-884.02,0.00023287,2]
[332521819,1721287991022,-500.0,0.00023287,2]
[332521820,1721287991031,-1416.46,0.00023287,2]
[332521821,1721287991040,-525.77,0.00023287,2]
[332521822,1721287991050,-500.0,0.00023287,2]
[332521823,1721287991060,-500.0,0.00023287,2]
[332521824,1721287991070,-808.77,0.00023287,2]
[332521825,1721287991079,-500.0,0.00023287,2]
[332521826,1721287991089,-500.0,0.00023287,2]
[332521827,1721287991099,-888.04,0.00023287,2]
[332521828,1721287991109,-505.31102177,0.00023287,2]
[332521829,1721287991119,-813.18,0.00023287,2]
[332521830,1721287991128,-2204.96,0.00023287,2]
[332521831,1721287991137,-500.0,0.00023287,2]
[332521832,1721287991147,-500.0,0.00023287,2]
[332521833,1721287991156,-617.34,0.00023287,2]
[332521834,1721287991165,-503.15,0.00023287,2]
[332521835,1721287991179,-500.0,0.00023287,2]
[332521836,1721287991191,-518.14092386,0.00023287,2]
[332521837,1721287991199,-500.0,0.00023287,2]
[332521838,1721287991208,-500.0,0.00023287,2]
[332521839,1721287991217,-550.97,0.00023287,2]
[332521840,1721287991228,-500.0,0.00023287,2]
[332521841,1721287991238,-773.79,0.00023287,2]
[332521842,1721287991248,-1258.11,0.00023287,2]
[332521843,1721287991258,-556.49,0.00023287,2]
[332521844,1721287991267,-1541.61,0.00023287,2]
[332521845,1721287991276,-500.0,0.00023287,2]
[332521846,1721287991285,-1497.76,0.00023287,2]
[332521847,1721287991295,-500.0,0.00023287,2]
[332521848,1721287991304,-923.36,0.00023287,2]
[332521849,1721287991314,-157.84178291,0.00023287,2]
[332521850,1721287991323,-505.89050903,0.00023287,2]
[332521851,1721287991332,-500.0,0.00023287,2]
[332521852,1721287991341,-500.0,0.00023287,2]
[332521853,1721287991350,-698.16,0.00023287,2]
[332521854,1721287991360,-1777.63,0.00023287,2]
[332521855,1721287991369,-227.37898723,0.00023287,2]
[332521856,1721287991380,-1751.66,0.00023287,2]
[332521857,1721287991390,-500.0,0.00023287,2]
[332521858,1721287991401,-500.0,0.00023287,2]
[332521859,1721287991412,-500.0,0.00023287,2]
[332521860,1721287991423,-500.0,0.00023287,2]
[332521861,1721287991434,-1440.65,0.00023287,2]
[332521862,1721287991443,-702.74,0.00023287,2]
[332521863,1721287991453,-748.62,0.00023287,2]
[332521864,1721287991463,-500.0,0.00023287,2]
[332521865,1721287991475,-500.0,0.00023287,2]
[332521866,1721287991485,-500.0,0.00023287,2]
[332521867,1721287991495,-500.0,0.00023287,2]
[332521868,1721287991505,-500.0,0.00023287,2]
[332521869,1721287991515,-600.34,0.00023287,2]
[332521870,1721287991524,-1459.37,0.00023287,2]
[332521871,1721287991534,-500.0,0.00023287,2]
[332521872,1721287991544,-834.65,0.00023287,2]
[332521873,1721287991554,-574.9,0.00023287,2]
[332521874,1721287991565,-967.34,0.00023287,2]
[332521875,1721287991575,-500.0,0.00023287,2]
[332521876,1721287991584,-945.46,0.00023287,2]
[332521877,1721287991594,-500.0,0.00023287,2]
[332521878,1721287991603,-500.0,0.00023287,2]
[332521879,1721287991613,-6789.46,0.00023287,2]
[332521880,1721287991623,-1649.03,0.00023287,2]
[332521881,1721287991633,-1351.16,0.00023287,2]
[332521882,1721287991645,-846.83,0.00023287,2]
[332521883,1721287991654,-3838.48,0.00023287,2]
[332521884,1721287991664,-727.83,0.00023287,2]
[332521885,1721287991677,-500.0,0.00023287,2]
[332521886,1721287991688,-500.0,0.00023287,2]
[332521887,1721287991697,-500.0,0.00023287,2]
[332521888,1721287991708,-500.0,0.00023287,2]
[332521889,1721287991720,-1099.8,0.00023287,2]
[332521890,1721287991730,-592.88,0.00023287,2]
[332521891,1721287991740,-500.0,0.00023287,2]
[332521892,1721287991750,-500.0,0.00023287,2]
[332521893,1721287991759,-758.27,0.00023287,2]
[332521894,1721287991769,-1314.69,0.00023287,2]
[332521895,1721287991779,-660.25,0.00023287,2]
[332521896,1721287991788,-500.0,0.00023287,2]
[332521897,1721287991798,-1225.2,0.00023287,2]
[332521898,1721287991808,-500.0,0.00023287,2]
[332521899,1721287991817,-690.8,0.00023287,2]
[332521900,1721287991831,-553.92324197,0.00023287,2]
[332521901,1721287991841,-500.0,0.00023287,2]
[332521902,1721287991851,-815.9,0.00023287,2]
[332521903,1721287991861,-500.0,0.00023287,2]
[332521904,1721287991870,-500.0,0.00023287,2]
[332521905,1721287991880,-500.0,0.00023287,2]
[332521906,1721287991890,-1445.6,0.00023287,2]
[332521907,1721287991900,-1211.24,0.00023287,2]
[332521908,1721287991910,-1000.0,0.00023287,2]
[332521909,1721287991919,-764.9,0.00023287,2]
[332521910,1721287991929,-500.0,0.00023287,2]
[332521911,1721287991939,-500.0,0.00023287,2]
[332521912,1721287991948,-500.0,0.00023287,2]
[332521913,1721287991958,-1017.79,0.00023287,2]
[332521914,1721287991968,-500.0,0.00023287,2]
[332521915,1721287991978,-500.0,0.00023287,2]
[332521916,1721287991988,-500.0,0.00023287,2]
[332521917,1721287991998,-500.0,0.00023287,2]
[332521918,1721287992007,-500.0,0.00023287,2]
[332521919,1721287992017,-500.0,0.00023287,2]
[332521920,1721287992028,-819.77,0.00023287,2]
[332521921,1721287992037,-362.07800437,0.00023287,2]
[332521922,1721287992047,-500.0,0.00023287,2]
[332521923,1721287992057,-843.65,0.00023287,2]
[332521924,1721287992067,-508.09,0.00023287,2]
[332521925,1721287992078,-1121.8,0.00023287,2]
[332521926,1721287992088,-500.0,0.00023287,2]
[332521927,1721287992099,-4510.49,0.00023287,2]
[332521928,1721287992109,-500.0,0.00023287,2]
[332521929,1721287992120,-500.0,0.00023287,2]
[332521930,1721287992130,-500.0,0.00023287,2]
[332521931,1721287992140,-548.62,0.00023287,2]
[332521932,1721287992151,-615.98,0.00023287,2]
[332521933,1721287992161,-732.51,0.00023287,2]
[332521934,1721287992172,-500.0,0.00023287,2]
[332521935,1721287992182,-500.0,0.00023287,2]
[332521936,1721287992191,-500.0,0.00023287,2]
[332521937,1721287992202,-727.51,0.00023287,2]
[332521938,1721287992212,-500.0,0.00023287,2]
[332521939,1721287992223,-699.69,0.00023287,2]
[332521940,1721287992234,-780.84,0.00023287,2]
[332521941,1721287992245,-985.19,0.00023287,2]
[332521942,1721287992255,-500.0,0.00023287,2]
[332521943,1721287992266,-2219.16,0.00023287,2]
[332521944,1721287992276,-500.0,0.00023287,2]
[332521945,1721287992287,-2008.64,0.00023287,2]
[332521946,1721287992297,-661.47,0.00023287,2]
[332521947,1721287992307,-500.0,0.00023287,2]
[332521948,1721287992318,-707.34,0.00023287,2]
[332521949,1721287992328,-776.84,0.00023287,2]
[332521950,1721287992339,-500.0,0.00023287,2]
[332521951,1721287992350,-6067.08,0.00023287,2]
[332521952,1721287992360,-500.0,0.00023287,2]
[332521953,1721287992371,-2197.33,0.00023287,2]
[332521954,1721287992382,-500.0,0.00023287,2]
[332521955,1721287992393,-500.0,0.00023287,2]
[332521956,1721287992405,-813.45,0.00023287,2]
[332521957,1721287992416,-500.0,0.00023287,2]
[332521958,1721287992428,-500.0,0.00023287,2]
[332521959,1721287992439,-500.0,0.00023287,2]
[332521960,1721287992451,-1222.6,0.00023287,2]
[332521961,1721287992463,-685.95,0.00023287,2]
[332521962,1721287992475,-885.84,0.00023287,2]
[332521963,1721287992487,-500.0,0.00023287,2]
[332521964,1721287992498,-500.0,0.00023287,2]
[332521965,1721287992509,-500.0,0.00023287,2]
[332521966,1721287992520,-703.44,0.00023287,2]
[332521967,1721287992531,-589.04,0.00023287,2]
[332521968,1721287992543,-919.77,0.00023287,2]
[332521969,1721287992554,-495.26659519,0.00023287,2]
[332521970,1721287992566,-2956.08,0.00023287,2]
[332521971,1721287992579,-500.0,0.00023287,2]
[332521972,1721287992591,-500.0,0.00023287,2]
[332521973,1721287992604,-699.95,0.00023287,2]
[332521974,1721287992616,-500.0,0.00023287,2]
[332521975,1721287992628,-758.73,0.00023287,2]
[332521976,1721287992644,-500.0,0.00023287,2]
[332521977,1721287992655,-1023.99,0.00023287,2]